[Event "Czech Open-GM 2022"]
[Site "Pardubice"]
[Date "2022.07.22"]
[Round "1.42"]
[White "Rokos, Filip"]
[Black "Stinka, Jakub"]
[Result "0-1"]
[ECO "B68"]
[WhiteElo "2111"]
[BlackElo "2335"]
[Annotator "TA"]
[PlyCount "50"]
[EventDate "2022.07.22"]
[EventType "swiss"]
[EventCountry "CZE"]
[SourceTitle "playchess.com"]
[Source "ChessBase"]
[SourceQuality "1"]
[TimeControl "40/5400+30:1800+30"]

{[%evp 18,50,32,0,3,0,0,0,0,0,0,0,0,0,0,-37,-50,-45,-40,-158,-158,-307,-308,-314,-314,-299,-300,-306,-299,-449,-435,-804,-782,-812,-469]} 1. e4 {[%emt 0:00:02]} c5 {[%emt 0:00:21]} 2. Nf3 {[%emt 0:00:05]} d6 {[%emt 0:00:07]} 3. d4 {[%emt 0:00:05]} cxd4 {[%emt 0:00:05]} 4. Nxd4 {[%emt 0:00:03]} Nf6 {[%emt 0:00:11]} 5. Nc3 {[%emt 0:00:03]} Nc6 {[%emt 0:00:06]} 6. Bg5 {[%emt 0:01:27]} e6 {[%emt 0:01:03]} 7. Qd2 {[%emt 0:00:40]} a6 {[%emt 0:01:07]} 8. O-O-O {[%emt 0:00:54]} Bd7 {[%emt 0:00:52][%cal Bc8d7,Bd7c6,Bc6e4][%mdl 32]} 9. f4 {[%emt 0:00:48]} Be7 {[%emt 0:04:56] is the new trend.} 10. Kb1 {[%emt 0:13:01]} b5 {[%emt 0:05:19] B68: Sicilian: Richter-Rauzer: 7...a6 8 0-0-0 Bd7 9 f4 Be7 .} 11. Bxf6 {[%emt 0:03:40]} (11. g4 {with more complications.} O-O 12. Rg1 Qb6 13. Bxf6 Bxf6 14. Nce2) 11... Bxf6 {[%emt 0:08:46]} 12. Nxc6 {[%emt 0:04:14]} Bxc6 {[%emt 0:00:14] The position is equal.} 13. Qxd6 {[%emt 0:00:57]} Qxd6 {[%emt 0:01:41]} 14. Rxd6 {[%emt 0:00:17]} Rc8 {[%emt 0:00:29][%cal Ba8c8,Bc8c3,Bc3c2,Bc2c1,Bc1b1,Bb1e1,Be1f1][%mdl 32]} 15. a4 {[%emt 0:21:37][%cal Ra4b5]} Bxc3 {[%emt 0:23:47] This bishop pair is nice.} 16. axb5 {[%emt 0:07:36] [#]} (16. bxc3 $5 {[%cal Ra4b5]} bxa4 17. e5 $11) 16... Bxe4 {[%emt 0:06:08] And now ...Bb4 would win.} 17. bxc3 {[%emt 0:01:08]} Rxc3 {[%emt 0:08:16] [#]} 18. Rxa6 $146 {[%emt 0:05:25]} ({White should try} 18. Rd4 $1 $15 Bg6 19. Rc4 (19. bxa6 Rxc2 20. Bb5+ Ke7 $17) 19... Rxc4 20. Bxc4) ({Predecessor:} 18. Rd4 Bg6 19. Rc4 Rxc4 20. Bxc4 axb5 21. Bxb5+ Ke7 22. Kb2 Rb8 23. c4 Be4 24. Kc3 Bxg2 {½-½ (60) Damia,A (2244)-Saric,I (2660) Spilimbergo 2019}) 18... Rxc2 $17 {[%emt 0:03:49] Black is more active.} 19. Ka1 {[%emt 0:10:10]} (19. Ra3 $17) 19... Ke7 $19 {[%emt 0:06:17]} ({Don't play} 19... Bxg2 20. Bxg2 Ke7 21. Rg1 $18) 20. Ra4 {[%emt 0:02:17]} Rc1+ {[%emt 0:02:51]} ({Worse is} 20... Bxg2 21. Bxg2 Rxg2 22. Ra7+ Kf6 23. Rc1 $17) 21. Kb2 {[%emt 0:00:56]} Rb1+ {[%emt 0:00:02]} 22. Ka2 {[%emt 0:02:48]} Re1 {[%emt 0:00:13]} 23. Ra7+ {[%emt 0:17:49]} (23. Kb2 $142) 23... Kf6 {[%emt 0:00:52] ...Rc8 is the strong threat. Black is clearly winning.} 24. b6 {[%emt 0:01:31]} (24. Kb3 $142) 24... Rb8 {[%emt 0:01:03]} 25. Ra6 {[%emt 0:04:28]} Rxf1 {[%emt 0:00:39] Weighted Error Value: White=0.65/Black=0.02 (flawless)} 0-1

[Event "Czech Open-GM 2022"]
[Site "Pardubice"]
[Date "2022.07.22"]
[Round "1.43"]
[White "Swicarz, Maciej"]
[Black "Soham Datar"]
[Result "0-1"]
[ECO "A35"]
[WhiteElo "2335"]
[BlackElo "2111"]
[Annotator "TA"]
[PlyCount "82"]
[EventDate "2022.07.22"]
[EventType "swiss"]
[EventCountry "CZE"]
[SourceTitle "playchess.com"]
[Source "ChessBase"]
[SourceQuality "1"]
[TimeControl "40/5400+30:1800+30"]

{[%evp 17,82,30,26,0,0,-8,40,55,50,69,35,43,52,-40,37,-53,45,-145,-79,-122,-131,-206,-202,-296,-300,-346,-339,-336,-333,-344,-330,-489,-475,-482,-482,-482,-482,-482,-482,-473,-470,-495,-493,-516,-229,-545,-545,-521,-514,-561,-429,-29973,-1961,-1702,-1630,-29978,-29979,-29981,-29982,-29987,-29988,-29989,-29987,-29985,-29986,-29989,-29990]} 1. c4 {[%emt 0:00:05]} c5 {[%emt 0:00:11]} 2. Nf3 {[%emt 0:00:07]} Nc6 {[%emt 0:00:05]} 3. Nc3 {[%emt 0:00:11]} Nf6 {[%emt 0:00:09]} 4. g3 {[%emt 0:00:19]} g6 {[%emt 0:00:04]} 5. d4 {[%emt 0:00:13]} cxd4 {[%emt 0:00:06]} 6. Nxd4 {[%emt 0:00:06]} Bg7 {[%emt 0:00:03]} 7. Bg2 {[%emt 0:00:19]} O-O {[%emt 0:00:07]} 8. O-O {[%emt 0:00:11]} d6 {[%emt 0:00:43] 8...Qa5 is a critical line.} 9. Nc2 {[%emt 0:04:27]} Qa5 {[%emt 0:02:12]} 10. a3 {[%emt 0:05:32] A38: Symmetrical English vs ...g6: 4 Bg2 Bg7 5 Nf3 Nf6.} Qh5 {[%emt 0:00:11] [#]} 11. Rb1 $146 {[%emt 0:06:23]} ({Predecessor:} 11. e4 Bg4 12. f3 Be6 13. Qe2 Ne5 14. Nd5 Nxd5 15. cxd5 Bh3 16. Be3 f5 17. exf5 gxf5 {1-0 (35) Varvadoukas,T (2152)-Linnanen,L (2185) Chess.com INT 2020}) 11... Ng4 {[%emt 0:15:05]} (11... Bh3 $11) 12. h3 $14 {[%emt 0:10:19] White is slightly better.} Nge5 {[%emt 0:00:06]} 13. g4 {[%emt 0:04:09]} Bxg4 {[%emt 0:00:23]} 14. hxg4 {[%emt 0:02:13]} Nxg4 {[%emt 0:00:05][%csl Gg4][%cal Rh5h2,Be5g4,Bg4f2,Bf2d3][%mdl 32]} 15. Re1 {[%emt 0:02:04]} (15. Bf4 $14) 15... Qh2+ $15 {[%emt 0:00:56]} 16. Kf1 {[%emt 0:00:15]} Nce5 {[%emt 0:03:30] Against Qd3} ({Better is} 16... Qh4 $1 $15 17. Ne4 f5) 17. Qd4 $2 {[%emt 0:07:13] [#]} (17. Qd2 $14 {stays ahead.}) 17... Nf3 $1 $40 {[%emt 0:04:10][%mdl 640] Black wants a kill. Black is more active. White is on the road to losing.} 18. exf3 {[%emt 0:01:29]} (18. Qxg7+ Kxg7) 18... Bxd4 {[%emt 0:00:07] Chess con chili.} 19. Nxd4 {[%emt 0:00:09] [#]} (19. fxg4 $17 {keeps fighting.} Bxf2 20. Kxf2) 19... Nxf2 $1 $19 {[%emt 0:03:04]} 20. Rxe7 {[%emt 0:04:17]} (20. Nd5 $142 e5 21. Be3) 20... Rfe8 {[%emt 0:05:31]} ({And not} 20... Qh4 21. Be3 $19) 21. Nd5 {[%emt 0:21:11]} Rxe7 {[%emt 0:01:59]} 22. Nxe7+ {[%emt 0:02:32]} Kf8 {[%emt 0:00:14]} 23. Nd5 {[%emt 0:00:58]} Nd3 {[%emt 0:06:29]} 24. Be3 {[%emt 0:06:38]} (24. Bg5 $142 Re8 25. f4) 24... Re8 {[%emt 0:00:57] Threatens to win with ...Qh4.} 25. Nc2 {[%emt 0:03:31]} Qh4 {[%emt 0:07:02][%cal Oe8e3] ( -> ...Rxe3!)} 26. Kg1 {[%emt 0:04:18] [#]} Rxe3 $1 {[%emt 0:00:14][%mdl 512]} 27. Ncxe3 {[%emt 0:00:41]} Qf2+ {[%emt 0:00:06]} 28. Kh1 {[%emt 0:01:17]} Ne1 {[%emt 0:01:51]} 29. f4 {[%emt 0:02:18]} h5 {[%emt 0:01:14]} 30. b4 {[%emt 0:01:37]} b6 {[%emt 0:04:19]} (30... h4 $142 31. Rxe1 Qxe1+ 32. Nf1 Qc1) 31. c5 $2 {[%emt 0:08:43]} (31. Be4) 31... dxc5 {[%emt 0:00:05]} 32. bxc5 {[%emt 0:00:06]} bxc5 {[%emt 0:00:08][%cal Oc5c4]} 33. f5 {[%emt 0:01:13]} gxf5 {[%emt 0:00:30] Hoping for ...h4.} 34. Bh3 {[%emt 0:01:44]} (34. Rb8+ $19 Kg7 35. Re8) 34... Qg3 {[%emt 0:02:08]} (34... Nf3 $142 35. Rb8+ Kg7 36. Nxf5+ Kh7 37. Nf6+ Kg6 38. Nh4+ Qxh4 39. Rg8+ Kxf6 40. Kg2 Ne1+ 41. Kf1 Nd3 42. Kg2 Nf4+ 43. Kf3 Nxh3 44. Ke2 Qd4 45. Rg3 Qf2+ 46. Kd1 Qxg3 47. Kc2 Qxa3 48. Kd2 Qb2+ 49. Kd3 Nf4+ 50. Ke4 Kg5 51. Kf3 Qg2+ 52. Ke3 Qe2#) 35. Bg2 {[%emt 0:00:35]} h4 {[%emt 0:00:59] And now ...h3 would win.} 36. Nf6 {[%emt 0:00:35]} Qxe3 {[%emt 0:02:07] Black mates.} 37. Rb8+ {[%emt 0:00:03]} Kg7 {[%emt 0:00:08]} 38. Nh5+ {[%emt 0:00:29]} Kg6 {[%emt 0:00:23]} 39. Rh8 {[%emt 0:00:17]} Nxg2 {[%emt 0:00:27]} 40. Kxg2 {[%emt 0:00:18]} Qd2+ {[%emt 0:00:11]} 41. Kh3 {[%emt 0:30:12]} Qc3+ {[%emt 0:30:07] Weighted Error Value: White=0.80/Black=0.44} 0-1

[Event "Czech Open-GM 2022"]
[Site "Pardubice"]
[Date "2022.07.22"]
[Round "1.44"]
[White "Vasicek, Martin"]
[Black "Nurkiewicz, Maciej"]
[Result "0-1"]
[ECO "A46"]
[WhiteElo "2111"]
[BlackElo "2332"]
[Annotator "TA"]
[PlyCount "78"]
[EventDate "2022.07.22"]
[EventType "swiss"]
[EventCountry "CZE"]
[SourceTitle "playchess.com"]
[Source "ChessBase"]
[SourceQuality "1"]
[TimeControl "40/5400+30:1800+30"]

{[%evp 9,78,17,33,14,18,12,27,19,32,12,9,8,10,0,12,11,16,0,35,0,0,-14,-13,-16,-16,-19,-21,-18,-21,-29,-27,-20,-25,-39,-27,-18,0,-47,-47,-37,-18,-18,-31,-126,-108,-115,-139,-402,-378,-660,-662,-662,-659,-634,-645,-645,-645,-626,-623,-1698,-1495,-29990,-29991,-29991,-29992,-29994,-29995,-29995,-29996,-29996,-29996]} 1. d4 {[%emt 0:00:04]} Nf6 {[%emt 0:00:05]} 2. Nf3 {[%emt 0:00:06]} e6 {[%emt 0:03:04]} 3. Bf4 {[%emt 0:00:21]} c5 {[%emt 0:00:24]} 4. e3 {[%emt 0:00:50]} cxd4 {[%emt 0:00:21]} 5. exd4 {[%emt 0:00:39]} b6 {[%emt 0:00:41]} 6. Nbd2 {[%emt 0:05:45] A46: 1 d4 Nf6 2 Nf3 e6: Torre, London and Colle Systems.} Be7 {[%emt 0:00:32]} 7. h3 {[%emt 0:00:57]} O-O {[%emt 0:00:26]} 8. c3 {[%emt 0:01:18] White has an edge.} d6 {[%emt 0:01:42]} 9. Bd3 {[%emt 0:03:11] 9.a4 is more fashionable.} Ba6 {[%emt 0:00:20]} 10. Bxa6 {[%emt 0:00:19]} Nxa6 {[%emt 0:00:02]} 11. O-O {[%emt 0:00:37]} Qd7 {[%emt 0:00:34]} 12. Qe2 {[%emt 0:03:04]} Nc7 {[%emt 0:00:15]} 13. a4 {[%emt 0:00:52]} a6 {[%emt 0:02:07] [#]} 14. Rfe1 $146 {[%emt 0:07:24]} ({Predecessor:} 14. Bh2 Qc6 15. Rfe1 Nfd5 16. c4 Nb4 17. d5 Qd7 18. dxe6 Nxe6 19. Ne4 Qc6 20. Nc3 {½-½ (106) Ushenina,A (2416)-Gunina,V (2431) Chess.com INT 2020}) 14... b5 {[%emt 0:02:49]} 15. axb5 {[%emt 0:02:26]} axb5 {[%emt 0:02:23]} 16. Ne4 {[%emt 0:06:23]} Nfd5 {[%emt 0:10:03]} 17. Bg5 {[%emt 0:04:42]} Bxg5 18. Nexg5 {[%emt 0:04:34]} h6 {[%emt 0:02:03] Hoping for ...Rxa1.} 19. Ne4 {[%emt 0:00:12]} Qc6 {[%emt 0:01:01]} 20. Nfd2 {[%emt 0:05:51]} f5 {[%emt 0:04:09]} 21. Ng3 $1 {[%emt 0:01:12]} Nf4 $36 {[%emt 0:00:07][%csl Gf4,LRe2,LRg2][%cal Rc6g2][%mdl 2048] Black has the initiative.} 22. Qf1 {[%emt 0:02:36]} Rf6 {[%emt 0:24:05][%cal Bf8f6,Bf6g6,Bg6g4][%mdl 32]} 23. Nb3 {[%emt 0:04:07]} (23. Rxa8+ $11 Nxa8 24. Ne2) 23... Rg6 $15 {[%emt 0:03:56]} 24. Rxa8+ {[%emt 0:01:36]} Qxa8 {[%emt 0:00:08]} 25. Ra1 {[%emt 0:00:19]} Qc6 {[%emt 0:02:10] aiming for ...h5.} 26. Ra7 {[%emt 0:08:05]} (26. Nd2 $1 $15) 26... h5 {[%emt 0:08:16]} 27. h4 {[%emt 0:01:17]} Rg4 {[%emt 0:04:26] ...g5 is the strong threat.} 28. Na5 $2 {[%emt 0:14:17][%mdl 8192] White does not recover from this.} (28. Nc1 $17) 28... Qb6 $19 {[%emt 0:00:12]} 29. Rb7 {[%emt 0:04:48]} (29. Rxc7 Qxc7 30. Qxb5) 29... Qxa5 {[%emt 0:00:08]} 30. b4 {[%emt 0:00:03] [#]} Qa8 {[%emt 0:00:13]} 31. Rxc7 {[%emt 0:00:06]} g5 {[%emt 0:00:25]} 32. d5 {[%emt 0:04:17]} Qxd5 {[%emt 0:00:54]} 33. c4 {[%emt 0:02:28]} bxc4 {[%emt 0:00:50] Active counter play!} 34. b5 {[%emt 0:08:46] Black must now prevent b6.} gxh4 {[%emt 0:00:14]} 35. b6 {[%emt 0:00:05]} hxg3 {[%emt 0:00:27] Black mates.} 36. fxg3 {[%emt 0:00:44] [#]} Rxg3 $1 {[%emt 0:01:16]} 37. Kh1 {[%emt 0:03:14]} (37. Rc8+ Kf7) 37... Rh3+ {[%emt 0:00:46]} 38. Kg1 {[%emt 0:00:03]} Qd4+ {[%emt 0:00:09]} 39. Qf2 {[%emt 0:00:06]} Qd1+ {[%emt 0:00:06] Weighted Error Value: White=0.53/Black=0.04 (flawless)} 0-1

[Event "Czech Open-GM 2022"]
[Site "Pardubice"]
[Date "2022.07.23"]
[Round "2.1"]
[White "Hansch, Karsten"]
[Black "Donchenko, Alexander"]
[Result "1/2-1/2"]
[ECO "B99"]
[WhiteElo "2320"]
[BlackElo "2640"]
[Annotator "TA"]
[PlyCount "41"]
[EventDate "2022.07.22"]
[EventType "swiss"]
[EventCountry "CZE"]
[SourceTitle "playchess.com"]
[Source "ChessBase"]
[SourceQuality "1"]
[TimeControl "40/5400+30:1800+30"]

{[%evp 26,41,106,94,149,140,156,155,220,143,114,150,250,203,290,204,233,151]} 1. e4 {[%emt 0:00:03]} c5 {[%emt 0:00:06]} 2. Nf3 {[%emt 0:00:05]} d6 {[%emt 0:00:05]} 3. d4 {[%emt 0:00:03]} cxd4 {[%emt 0:00:14]} 4. Nxd4 {[%emt 0:00:06]} Nf6 {[%emt 0:00:16]} 5. Nc3 {[%emt 0:00:06]} a6 {[%emt 0:00:14]} 6. Bg5 {[%emt 0:00:20]} e6 {[%emt 0:08:12]} 7. f4 {[%emt 0:00:25]} Be7 {[%emt 0:00:22]} 8. Qf3 {[%emt 0:00:05]} Nbd7 {[%emt 0:01:12]} 9. O-O-O {[%emt 0:00:12]} Qc7 {[%emt 0:00:15]} 10. g4 {[%emt 0:00:23][%cal Bg2g4,Bg4g5][%mdl 32]} b5 {[%emt 0:08:35]} 11. Bxf6 {[%emt 0:00:33]} Nxf6 {[%emt 0:00:21]} 12. g5 {[%emt 0:00:05]} Nd7 {[%emt 0:00:11]} 13. f5 {[%emt 0:00:09]} Ne5 {[%emt 0:31:43] [#] 13...0-0 is setting a new trend.} 14. Qg3 $1 {[%emt 0:10:29]} Bd7 {[%emt 0:08:04] B99: Sicilian Najdorf: 6 Bg5 e6 7 f4 Be7 8 Qf3 Qc7 9 0-0-0 Nbd7.} (14... Nc6 $142) 15. Bh3 $16 {[%emt 0:01:11][%cal Rf5e6,Bf1h3,Bh3g2,Bg2a8][%mdl 32]} Qc4 {[%emt 0:04:23]} 16. Kb1 {[%emt 0:06:36] [#]} g6 $146 {[%emt 0:08:55]} (16... O-O $16 {was worth a try.}) ({Predecessor:} 16... Rc8 17. Nce2 h6 18. fxe6 fxe6 19. Nf4 hxg5 20. Nfxe6 Bf6 21. Qa3 b4 22. Qg3 Rxh3 23. Qxh3 Bxe6 24. Qxe6+ Qxe6 25. Nxe6 {½-½ (43) Rohit,S (2189)-Cu Hor,W (2333) Budapest 2021}) 17. b3 {[%emt 0:11:51]} Qc8 {[%emt 0:00:03] [#]} 18. Nce2 $1 {[%emt 0:00:23] White is more active.} exf5 {[%emt 0:04:02]} (18... h6 $16 {is a better defense.}) 19. exf5 $18 {[%emt 0:00:47] Black must now prevent Nf4.} h6 {[%emt 0:03:21]} (19... O-O $142 20. Nf4 Re8) 20. Bg2 {[%emt 0:05:01] And now Nf4 would win.} hxg5 {[%emt 0:01:11][%cal Od7f5]} 21. Bxa8 {[%emt 0:01:58] Weighted Error Value: White=0.18 (very precise) /Black=0.46} 1/2-1/2

[Event "Czech Open-GM 2022"]
[Site "Pardubice"]
[Date "2022.07.23"]
[Round "2.2"]
[White "Frank, Adam"]
[Black "Plat, Vojtech"]
[Result "1/2-1/2"]
[ECO "B06"]
[WhiteElo "2313"]
[BlackElo "2554"]
[Annotator "TA"]
[PlyCount "52"]
[EventDate "2022.07.22"]
[EventType "swiss"]
[EventCountry "CZE"]
[SourceTitle "playchess.com"]
[Source "ChessBase"]
[SourceQuality "1"]
[TimeControl "40/5400+30:1800+30"]

{[%evp 9,52,72,81,59,53,47,50,53,48,57,63,40,50,40,60,64,64,66,85,95,151,136,175,170,193,205,208,195,171,133,142,125,111,122,112,90,94,87,91,91,93,47,76,13,21]} 1. e4 {[%emt 0:00:02]} g6 {[%emt 0:00:06]} 2. d4 {[%emt 0:00:08]} Bg7 {[%emt 0:00:06]} 3. Nc3 {[%emt 0:00:07]} e6 {[%emt 0:00:15]} 4. Nf3 {[%emt 0:06:48]} Ne7 {[%emt 0:00:06]} 5. Bf4 {[%emt 0:08:48]} d5 {[%emt 0:00:22]} 6. Bd3 {[%emt 0:00:06] B06: Modern Defence.} dxe4 7. Nxe4 {[#]} O-O $146 {[%emt 0:02:38]} ({Predecessor:} 7... Nbc6 8. c3 Nd5 9. Bg5 f6 10. Bd2 O-O 11. O-O b6 12. Qb3 Bb7 13. Rfe1 Qd7 {1-0 (43) Thoma,O (2273)-Koci,V (2270) ICCF email 2004}) 8. O-O {[%emt 0:06:08] White is slightly better.} b6 {[%emt 0:00:52]} 9. Qe2 Bb7 10. c3 {[%emt 0:03:31][%cal Bc2c3,Bc3c4,Bc4d5][%mdl 32]} Nd7 {[%emt 0:04:47]} 11. Rad1 {[%emt 0:00:35]} Nf5 {[%emt 0:02:54]} 12. Rfe1 {[%emt 0:11:57]} a5 {[%emt 0:02:59]} 13. Ne5 {[%emt 0:10:50]} Bd5 {[%emt 0:11:37]} 14. Bb5 {[%emt 0:07:54]} Nb8 {[%emt 0:04:07]} (14... Nf6 $142 15. Nxf6+ Bxf6) 15. c4 $16 {[%emt 0:06:13]} Bb7 {[%emt 0:00:06]} 16. d5 {[%emt 0:00:02]} exd5 {[%emt 0:00:09]} 17. cxd5 {[%emt 0:00:04][%cal Od5d6] Black must now prevent d6!} Ba6 {[%emt 0:18:25]} 18. Bxa6 {[%emt 0:15:51]} Nxa6 {[%emt 0:00:04]} 19. Nc6 {[%emt 0:00:03] Prevents Qe7.} Qd7 {[%emt 0:01:24]} 20. Be5 {[%emt 0:00:07]} Nc5 {[%emt 0:08:36]} 21. Bxg7 {[%emt 0:05:56] 0x0.001449b0eff2dp-1022s more active pieces.} Kxg7 {[%emt 0:00:04]} 22. Nxc5 {[%emt 0:00:04]} bxc5 {[%emt 0:00:05]} 23. Qe5+ {[%emt 0:00:02]} Kg8 {[%emt 0:00:48]} 24. Qc3 {[%emt 0:01:36][%csl LRa5,LRc5]} Qd6 {[%emt 0:01:44]} 25. Nxa5 {[%emt 0:05:46]} ({White should play} 25. g3 $16) 25... Nd4 {[%emt 0:00:03] [#]} 26. Nb3 {[%emt 0:00:12]} (26. Nc6 $1 $16 {[%cal Rc6e7]}) 26... Nxb3 {[%emt 0:02:00] Weighted Error Value: White=0.14 (very precise) /Black=0.08 (flawless)} 1/2-1/2

[Event "Czech Open-GM 2022"]
[Site "Pardubice"]
[Date "2022.07.23"]
[Round "2.3"]
[White "Sorm, Daniel"]
[Black "Harsha Bharathakoti"]
[Result "0-1"]
[ECO "E48"]
[WhiteElo "2308"]
[BlackElo "2547"]
[Annotator "TA"]
[PlyCount "74"]
[EventDate "2022.07.22"]
[EventType "swiss"]
[EventCountry "CZE"]
[SourceTitle "playchess.com"]
[Source "ChessBase"]
[SourceQuality "1"]
[TimeControl "40/5400+30:1800+30"]

{[%evp 15,74,-4,-9,-5,0,0,8,-4,0,-11,0,-19,0,-10,0,0,65,68,58,64,54,33,63,-28,-39,-24,-33,-43,18,-18,-11,-50,0,-56,0,-102,0,-135,-139,-150,-151,-147,-151,-147,-150,-150,-140,-154,-133,-170,-95,-662,-656,-669,-669,-669,-661,-646,-545,-696,-666]} 1. d4 {[%emt 0:00:01]} Nf6 {[%emt 0:00:10]} 2. c4 {[%emt 0:00:33]} e6 {[%emt 0:00:05]} 3. Nc3 {[%emt 0:00:05]} Bb4 {[%emt 0:00:09]} 4. e3 {[%emt 0:00:13]} O-O {[%emt 0:00:40]} 5. Bd3 {[%emt 0:01:29]} d5 {[%emt 0:00:20]} 6. cxd5 {[%emt 0:00:28]} exd5 {[%emt 0:00:08]} 7. Nge2 {[%emt 0:00:07]} Re8 {[%emt 0:00:19]} 8. O-O {[%emt 0:00:18]} Bd6 {[%emt 0:00:18]} 9. a3 {[%emt 0:00:41] E48: Nimzo-Indian: Rubinstein: 5 Bd3 d5 including 6 Ne2, but excluding 6 a3.} b6 {[%emt 0:17:45]} 10. b4 {[%emt 0:01:10]} a6 {[%emt 0:01:36]} 11. Rb1 {[%emt 0:12:22] The position is equal.} Nbd7 {[%emt 0:06:53][%cal Od6h2,Bb8d7,Bd7f8,Bf8e6][%mdl 32]} 12. f3 {[%emt 0:00:44]} c5 {[%emt 0:04:25] [#]} 13. Qe1 $146 {[%emt 0:15:32]} ({Predecessor:} 13. bxc5 bxc5 14. Nf4 cxd4 15. exd4 Nb6 16. Re1 Bd7 17. Rxe8+ Bxe8 18. Nce2 Qc7 19. Qb3 Rb8 20. Qc3 Qa7 21. g4 h6 22. h4 Na4 23. Qd2 Rxb1 24. Bxb1 Nb6 {½-½ (24) Andersen,M (2542)-Grandelius,N (2642) Denmark 2017}) 13... Nf8 {[%emt 0:11:15]} 14. Qf2 {[%emt 0:02:19]} Qc7 {[%emt 0:01:20]} 15. g4 {[%emt 0:06:48][%cal Bg2g4,Bg4g5][%mdl 32]} Bb7 {[%emt 0:07:19]} (15... h6 $11) 16. g5 $14 {[%emt 0:02:55]} Nh5 {[%emt 0:06:05]} 17. f4 {[%emt 0:04:27]} g6 {[%emt 0:00:05]} 18. Bd2 {[%emt 0:02:50]} (18. f5 {seems wilder.} cxd4 19. exd4 Ng7 20. f6) 18... Ne6 {[%emt 0:10:36]} 19. Ng3 {[%emt 0:10:01]} (19. bxc5 $14 bxc5 20. f5) 19... Nxg3 $11 {[%emt 0:00:15]} (19... cxd4 $2 20. Nxh5 gxh5 21. exd4 $16) 20. hxg3 {[%emt 0:00:13]} Bf8 {[%emt 0:00:06]} 21. Ne2 {[%emt 0:06:27]} Rac8 {[%emt 0:05:15]} (21... Qd7 $15) 22. Kg2 {[%emt 0:06:02]} Bg7 {[%emt 0:04:46]} 23. Rh1 {[%emt 0:02:02]} Qe7 {[%emt 0:14:12]} (23... Bc6 $1 $15) 24. Rh4 {[%emt 0:05:39]} (24. bxc5 $2 Nxc5 $1 25. Bc2 (25. dxc5 $2 d4+ 26. Kh2 dxe3 $19) 25... Ne4 26. Bxe4 Qxe4+ 27. Qf3 Qd3 $19) ({White should play} 24. g4 $11) 24... cxd4 {[%emt 0:00:05]} (24... Bc6 $15 25. Qf3 (25. Bxa6 $2 Nxd4 26. Kg1 Qe4 $19) 25... cxd4 26. exd4 Nxd4 27. Nxd4 Bxd4) 25. exd4 {[%emt 0:00:10]} (25. Nxd4 $11 {keeps the balance.} f5 26. g4 fxg4 27. Rbh1) 25... Rc4 {[%emt 0:00:16]} ({Better is} 25... Bc6 $1 $17 {Strongly threatening ...Bb5.} 26. Re1 (26. Bxa6 Nxd4 27. Nxd4 Qe4+ 28. Nf3 Qxb1 $19) (26. Rbh1 Bb5 $17) 26... Bb5) 26. Bxc4 {[%emt 0:11:29]} (26. Re1 $1 $11) 26... dxc4+ $17 {[%emt 0:00:04]} 27. Kg1 {[%emt 0:01:17][%cal Od4d5] [#]} Nxd4 $1 {[%emt 0:01:39][%mdl 576] Decoy. Black is more active.} 28. Nxd4 {[%emt 0:00:12] Hoping for Re1.} Qe4 {[%emt 0:00:02][%csl LRb1,LRd4]} 29. Re1 {[%emt 0:00:29]} Bxd4 {[%emt 0:00:05][%csl Gb7][%cal Re4g2] The board is on fire. This bishop pair is nice.} 30. Rxe4 {[%emt 0:00:14]} Bxf2+ {[%emt 0:03:35]} 31. Kxf2 {[%emt 0:00:05]} Bxe4 {[%emt 0:00:02][%mdl 4096] Endgame KRB-KRB} ({Inferior is} 31... Rxe4 32. Bc3 $17) 32. f5 {[%emt 0:02:37]} Bxf5 {[%emt 0:05:07]} (32... gxf5 $19 {And now ...Rd8 would win.} 33. Rh6 Rd8) 33. Rxc4 $2 {[%emt 0:05:38][%mdl 8192] This costs White the game.} (33. Bc3 $17) 33... Bd3 $19 {[%emt 0:00:12] Black is clearly winning.} 34. Rd4 {[%emt 0:00:04]} Re2+ {[%emt 0:00:05]} 35. Kf3 {[%emt 0:00:03]} Rxd2 {[%emt 0:00:04]} 36. Ke3 {[%emt 0:00:05] [#]} Rg2 {[%emt 0:00:34]} 37. Kf3 {[%emt 0:00:12] [#]} (37. Kxd3 Rxg3+) 37... Bf1 $1 {[%emt 0:00:03] Weighted Error Value: White=0.53/Black=0.23 (precise)} 0-1